bitfinex/quotes_SOLUSD_20240716
["timestamp","ask_amount","ask_price","bid_price","bid_amount"]
[1721138941289,1.33836373,155.04,155.02,0.8428563]
[1721138942213,20.0,155.05,155.02,0.8428563]
[1721138942214,21.33836373,155.05,155.02,0.8428563]
[1721138942414,1.33836373,155.07,155.02,0.8428563]
[1721138942616,11.33836373,155.1,155.03,22.6653]
[1721138943322,10.0,155.09,155.03,22.6653]
[1721138943511,1.33836373,155.08,155.03,22.6653]
[1721138943715,1.33836373,155.07,155.03,22.6653]
[1721138944012,21.33836373,155.07,155.03,22.6653]
[1721138944190,40.0,155.06,155.02,0.8428563]
[1721138944389,10.0,155.04,155.02,0.8428563]
[1721138944612,21.33836373,155.03,155.02,0.8428563]
[1721138945591,20.0,155.03,155.02,0.8428563]
[1721138945987,21.33836373,155.03,155.02,0.8428563]
[1721138946909,20.0,155.03,155.02,0.8428563]
[1721138947111,21.33836373,155.03,155.02,0.8428563]
[1721138947421,21.33836373,155.03,154.87,0.8428563]
[1721138947422,20.0,155.01,154.87,0.8428563]
[1721138947598,65.823,155.01,154.94,32.24794768]
[1721138947798,89.53,155.01,154.94,32.24794768]
[1721138947994,59.53,155.01,154.94,32.24794768]
[1721138948430,10.0,154.98,154.88,32.2156455]
[1721138948718,10.0,154.96,154.88,32.2156455]
[1721138948894,20.0,154.95,154.88,32.2156455]
[1721138949315,10.0,154.94,154.88,32.2156455]
[1721138949497,21.33836373,154.93,154.88,32.2156455]
[1721138949893,1.33836373,154.92,154.88,32.2156455]
[1721138950388,1.33836373,154.94,154.88,32.2156455]
[1721138950827,1.33836373,154.95,154.88,32.2156455]
[1721138951317,20.0,155.01,154.88,32.2156455]
[1721138951625,10.0,154.97,154.88,32.2156455]
[1721138951808,1.33836373,154.96,154.88,32.2156455]
[1721138951997,1.33836373,154.95,154.88,32.2156455]
[1721138952214,11.33836373,154.95,154.88,32.2156455]
[1721138952806,1.33836373,154.95,154.88,32.2156455]
[1721138953010,31.33836373,154.95,154.88,32.2156455]
[1721138953227,10.0,154.93,154.88,32.2156455]
[1721138953519,21.33836373,154.92,154.88,32.2156455]
[1721138953702,1.33836373,154.92,154.88,32.2156455]
[1721138953900,1.33836373,154.94,154.88,32.2156455]
[1721138954107,11.33836373,154.94,154.88,32.2156455]
[1721138954413,20.0,154.93,154.88,32.2156455]
[1721138954618,1.33836373,154.92,154.88,32.2156455]
[1721138954998,10.0,154.91,154.88,32.2156455]
[1721138955311,10.0,154.89,154.88,32.2156455]
[1721138955499,1.33836373,154.89,154.88,32.2156455]
[1721138955699,21.33836373,154.89,154.88,32.2156455]
[1721138956117,1.33836373,154.92,154.88,32.2156455]
[1721138956305,21.33836373,154.96,154.88,32.2156455]
[1721138956506,1.33836373,154.95,154.9,32.55659675]
[1721138956707,1.33836373,154.95,154.92,32.32076421]
[1721138956914,1.33836373,154.99,154.92,32.32076421]
[1721138957232,1.33836373,155.02,154.92,32.32076421]
[1721138957523,1.33836373,155.01,154.98,6.5976]
[1721138957705,7.78856373,155.04,154.98,13.0499]
[1721138957897,7.78856373,155.04,154.99,15.1622]
[1721138957898,6.4505,155.03,154.99,15.1622]
[1721138958103,1.33836373,155.04,154.99,21.6141]
[1721138958326,1.33836373,155.04,154.99,21.6142]
[1721138958506,7.78726373,155.07,155.01,6.451]
[1721138958703,1.33836373,155.07,155.02,6.4507]
[1721138958933,10.0,155.11,155.03,1.28750856]
[1721138958934,1.33836373,155.1,155.03,1.28750856]
[1721138959230,1.33836373,155.1,155.03,1.28200421]
[1721138959532,1.33836373,155.09,155.01,16.1272]
[1721138959732,1.33836373,155.12,155.02,1.28973]
[1721138960035,7.78526373,155.12,155.04,16.1247]
[1721138960335,1.33836373,155.12,155.04,16.1247]
[1721138960622,6.4484,155.08,155.01,16.1279]
[1721138960826,6.4474,155.1,155.04,6.4499]
[1721138961129,1.33836373,155.09,154.99,15.1622]
[1721138961310,6.4503,155.03,154.99,15.1622]
[1721138961517,1.33836373,155.07,154.99,15.1622]
[1721138961814,21.33836373,155.07,154.99,15.1622]
[1721138962140,27.78736373,155.07,155.0,6.4515]
[1721138962312,21.33836373,155.07,154.99,15.1622]
[1721138962512,20.0,155.07,154.99,15.1622]
[1721138962710,1.33836373,155.1,155.06,6.449]
[1721138962945,6.4465,155.13,155.06,6.449]
[1721138962946,1.33836373,155.12,155.06,6.449]
[1721138963236,1.33836373,155.12,155.07,7.83994948]
[1721138963433,6.447,155.11,155.07,6.5503]
[1721138963610,1.33836373,155.13,155.07,6.5503]
[1721138963810,6.4462,155.13,155.07,12.9989]
[1721138964227,7.78496373,155.12,155.07,6.5503]
[1721138964538,16.1121,155.17,155.07,6.5503]
[1721138964539,1.33836373,155.15,155.08,17.26574598]
[1721138964844,1.33836373,155.14,155.08,15.9763]
[1721138965008,1.33836373,155.16,155.09,1.28925133]
[1721138965208,1.33836373,155.16,155.08,15.9763]
[1721138965508,6.4478,155.09,155.08,15.9763]
[1721138965847,1.33836373,155.11,155.07,6.5503]
[1721138966047,6.4467,155.12,155.07,6.5503]
[1721138966217,20.0,155.11,155.07,6.5503]
[1721138966416,7.78576373,155.1,155.07,6.5503]
[1721138966634,20.0,155.15,155.07,6.5503]
[1721138966635,1.33836373,155.14,155.07,6.5503]
[1721138966811,6.4482,155.08,155.07,6.5503]
[1721138967140,1.33836373,155.12,155.07,6.5503]
[1721138967339,6.4482,155.08,155.07,6.5503]
[1721138967529,1.33836373,155.11,155.07,6.5503]
[1721138967715,21.33836373,155.12,155.07,6.5503]
[1721138967921,6.4465,155.13,155.07,12.9989]
[1721138968123,1.33836373,155.12,155.07,12.9989]
[1721138968440,1.33836373,155.15,155.07,6.5503]
[1721138968641,6.4467,155.12,155.07,6.5503]
[1721138968816,7.78446373,155.14,155.08,6.4482]
[1721138969017,6.4482,155.08,155.07,6.5503]
[1721138969245,6.4478,155.1,155.07,6.5503]
[1721138969652,6.4476,155.1,155.07,6.5503]
[1721138969943,6.4494,155.06,155.03,15.9763]
[1721138970152,6.4487,155.07,155.03,15.9763]
[1721138970319,1.33836373,155.09,155.03,15.9763]
[1721138970518,6.4486,155.08,155.03,15.9763]
[1721138970740,6.4491,155.06,155.03,15.9763]
[1721138971246,6.4493,155.06,155.03,15.9763]
[1721138971419,6.4485,155.08,155.03,15.9763]
[1721138971849,7.78706373,155.07,155.03,15.9763]
[1721138972050,6.4483,155.08,155.03,15.9763]
[1721138972317,7.78706373,155.07,155.03,15.9763]
[1721138972518,6.4479,155.09,155.03,15.9763]
[1721138972755,20.0,155.08,155.04,6.4499]
[1721138973056,26.4483,155.08,155.03,15.9763]
[1721138973257,1.33836373,155.07,155.03,15.9763]
[1721138973473,6.4491,155.06,155.03,15.9763]
[1721138973653,1.33836373,155.07,155.03,15.9763]
[1721138973955,6.4491,155.06,155.03,15.9763]
[1721138974151,6.4487,155.07,155.03,15.9763]
[1721138974460,1.33836373,155.06,155.03,15.9763]
[1721138974627,46.1192,155.1,155.03,15.9763]
[1721138974628,1.33836373,155.09,155.03,15.9763]
[1721138974829,6.4499,155.04,155.03,15.9763]
[1721138975050,6.4499,155.04,155.02,6.0935]
[1721138975051,6.4503,155.03,155.02,6.0935]
[1721138975235,6.4512,155.01,154.98,23.0387]
[1721138975439,1.33836373,155.03,155.0,6.4514]
[1721138975636,6.4503,155.03,154.98,23.0387]
[1721138975845,1.33836373,155.05,154.98,29.4911]
[1721138976064,6.4505,155.03,154.98,23.0387]
[1721138976236,7.78836373,155.04,154.98,29.491]
[1721138976557,7.78876373,155.03,154.98,29.4911]
[1721138976756,6.4504,155.03,154.98,29.4911]
[1721138977137,1.33836373,155.06,154.99,6.4518]
[1721138977661,6.4496,155.05,154.99,6.4518]
[1721138977837,6.4491,155.06,155.0,7.74142236]
[1721138978036,20.0,155.05,155.01,6.4511]
[1721138978232,26.4496,155.05,154.98,23.0387]
[1721138978447,26.4496,155.05,154.99,7.04210294]
[1721138978646,6.4492,155.06,155.0,7.45472545]
[1721138978955,1.33836373,155.09,154.98,39.1695]
[1721138979165,27.45846373,155.09,154.98,45.6215]
[1721138979539,6.4499,155.04,154.98,45.6215]
[1721138980249,6.4496,155.05,154.98,39.1695]
[1721138980630,17.45846373,155.09,154.98,39.1695]
[1721138980960,26.06762046,155.12,155.02,6.4505]
[1721138980961,1.33836373,155.08,155.02,6.4505]
[1721138981132,1.33836373,155.11,155.02,6.4505]
[1721138981336,1.33836373,155.1,155.03,7.74010699]
[1721138981563,6.4479,155.09,155.03,7.74010699]
[1721138981863,1.33836373,155.11,155.04,22.3369]
[1721138982041,6.4475,155.1,155.05,15.142]
[1721138982256,1.33836373,155.14,155.05,16.4315717]
[1721138982436,6.4477,155.1,155.05,16.43157154]
[1721138982668,6.4477,155.1,155.05,22.88097154]
[1721138982941,6.4468,155.12,155.07,6.4486]
[1721138983137,6.4468,155.12,155.06,6.449]
[1721138983335,19.36,155.19,155.06,16.1219]
[1721138983336,1.33836373,155.16,155.06,16.1219]
[1721138983543,1.33836373,155.16,155.08,16.1203]
[1721138983741,10.0,155.2,155.1,16.1181]
[1721138983742,1.33836373,155.18,155.1,16.1181]
[1721138983950,7.78296373,155.17,155.12,15.1072]
[1721138984163,6.4441,155.18,155.13,1.28897607]
[1721138984563,6.4446,155.17,155.13,1.28897607]
[1721138984747,1.33836373,155.19,155.13,1.28897607]
[1721138985058,6.444,155.19,155.15,6.6167]
[1721138985267,1.33836373,155.24,155.15,6.6167]
[1721138985436,6.4425,155.22,155.16,6.4446]
[1721138985641,6.4425,155.22,155.17,6.4444]
[1721138985947,1.33836373,155.25,155.18,1.28858639]
[1721138986142,1.33836373,155.24,155.17,16.1105]
[1721138986338,11.33836373,155.27,155.15,6.6167]
[1721138986563,6.4437,155.19,155.15,6.6167]
[1721138986961,6.4432,155.21,155.15,6.6167]
[1721138987261,6.4432,155.21,155.16,1.28886845]
[1721138987562,6.4433,155.2,155.15,6.6167]
[1721138987737,6.4438,155.19,155.15,6.6167]
[1721138988240,1.33836373,155.23,155.15,6.6167]
[1721138988434,6.4428,155.22,155.16,6.4448]
[1721138988632,6.4433,155.2,155.15,13.062]
[1721138988859,6.4429,155.21,155.16,6.4449]
[1721138989254,16.1041,155.24,155.15,13.062]
[1721138989255,6.4433,155.2,155.15,13.062]
[1721138989438,6.4438,155.19,155.15,6.6167]
[1721138989635,6.4442,155.18,155.15,6.6167]
[1721138989938,10.0,155.23,155.15,6.6167]
[1721138989939,1.33836373,155.22,155.15,6.6167]
[1721138990145,6.4437,155.19,155.15,6.6167]
[1721138990449,1.33836373,155.21,155.15,6.6167]
[1721138990650,1.33836373,155.22,155.16,16.1121]
[1721138990864,1.33836373,155.22,155.17,6.4444]
[1721138991040,30.0,155.27,155.18,6.444]
[1721138991041,6.4416,155.24,155.18,6.444]
[1721138991358,26.4422,155.23,155.16,16.1121]
[1721138991563,6.4417,155.24,155.18,6.444]
[1721138992232,6.4412,155.25,155.2,22.7585]
[1721138992432,6.4408,155.26,155.21,6.4427]
[1721138992769,6.4417,155.24,155.2,16.3156]
[1721138992945,26.1016,155.27,155.2,16.3156]
[1721138993262,6.4428,155.21,155.2,16.3156]
[1721138993647,6.4425,155.22,155.2,16.3156]
[1721138993840,1.33836373,155.24,155.2,16.3156]
[1721138994042,31.33836373,155.27,155.2,16.3156]
[1721138994243,17.44096373,155.26,155.2,16.3156]
[1721138994449,20.0,155.25,155.2,16.3156]
[1721138994649,11.33836373,155.24,155.15,23.1116]
[1721138994850,30.0,155.25,155.15,23.1116]
[1721138994851,26.1067,155.22,155.15,23.1116]
[1721138995163,6.4449,155.16,155.15,23.1116]
[1721138995362,6.4445,155.17,155.15,23.1116]
[1721138995545,6.4437,155.19,155.15,23.1116]
[1721138995861,6.4433,155.2,155.15,29.5569]
[1721138996043,6.4441,155.19,155.15,23.1116]
[1721138996246,6.4432,155.21,155.15,29.5569]
[1721138996478,20.0,155.2,155.15,29.5569]
[1721138996776,20.0,155.2,155.16,6.4449]
[1721138997086,21.33836373,155.2,155.15,23.1116]
[1721138997265,26.1046,155.24,155.15,23.1116]
[1721138997266,6.4446,155.17,155.15,23.1116]
[1721138997639,6.4449,155.16,155.15,23.1116]
[1721138997837,6.4445,155.18,155.15,23.1116]
[1721138998053,7.78216373,155.19,155.15,23.1116]
[1721138998646,6.4443,155.18,155.15,23.1116]
[1721138999267,6.4445,155.17,155.15,23.1116]
[1721138999779,6.4438,155.19,155.15,23.1116]
[1721138999946,6.4448,155.17,155.15,23.1116]
[1721139000146,6.4445,155.18,155.15,23.1116]
[1721139000365,1.33836373,155.2,155.15,23.1116]
[1721139000577,7.78086373,155.22,155.15,23.1116]
[1721139000743,6.4438,155.19,155.15,23.1116]
[1721139000938,1.33836373,155.18,155.15,23.1116]
[1721139001139,10.0,155.21,155.15,23.1116]
[1721139001140,6.4449,155.16,155.15,23.1116]
[1721139001344,1.33836373,155.17,155.15,23.1116]
[1721139001563,6.4444,155.18,155.15,23.1116]
[1721139001951,1.33836373,155.17,155.1,22.3196]
[1721139002153,6.4454,155.15,155.1,22.3196]
[1721139002367,1.33836373,155.17,155.1,22.3196]
[1721139002548,7.78326373,155.17,155.11,6.4467]
[1721139002749,6.4449,155.16,155.11,6.4467]
[1721139002971,27.78276373,155.18,155.12,6.4465]
[1721139003174,1.33836373,155.21,155.1,22.3196]
[1721139003459,1.33836373,155.2,155.14,16.1139]
[1721139003675,1.33836373,155.2,155.13,6.4458]
[1721139003676,6.4444,155.18,155.13,6.4458]
[1721139003965,6.4441,155.19,155.13,22.561]
[1721139004267,1.33836373,155.2,155.13,16.1151]
[1721139004447,1.33836373,155.22,155.18,6.444]
[1721139004648,1.33836373,155.25,155.17,16.1109]
[1721139004859,11.33836373,155.25,155.15,15.0132]
[1721139005042,6.4433,155.2,155.15,21.4584]
[1721139005248,1.33836373,155.24,155.15,15.0132]
[1721139005464,27.44376373,155.23,155.15,15.0132]
[1721139005665,6.4441,155.18,155.15,15.0132]
[1721139005849,1.33836373,155.23,155.15,15.0132]
[1721139006043,6.4437,155.19,155.15,15.0132]
[1721139006257,1.33836373,155.21,155.16,16.1119]
[1721139006665,21.33836373,155.24,155.16,16.1119]
[1721139006860,1.33836373,155.23,155.16,16.1119]
[1721139007255,1.33836373,155.23,155.18,6.4439]
[1721139007467,27.78036373,155.23,155.18,6.4439]
[1721139007660,7.78036373,155.23,155.18,6.4439]
[1721139007856,21.33836373,155.22,155.18,6.4439]
[1721139008141,27.78106373,155.22,155.16,22.5567]
[1721139008348,20.0,155.22,155.16,16.1119]
[1721139008571,6.4425,155.22,155.17,1.05626774]
[1721139008746,20.0,155.21,155.18,1.13413579]
[1721139008947,26.443,155.21,155.16,16.1119]
[1721139009159,1.33836373,155.2,155.15,15.0132]
[1721139009366,6.4442,155.18,155.15,15.0132]
[1721139009676,6.4446,155.17,155.15,15.0132]
[1721139009875,1.33836373,155.2,155.15,15.0132]
[1721139009876,6.4437,155.19,155.15,15.0132]
[1721139010051,7.78246373,155.18,155.15,15.0132]
[1721139010243,6.4434,155.2,155.15,15.0132]
[1721139010655,20.0,155.19,155.15,15.0132]
[1721139011060,20.0,155.19,155.17,6.4444]
[1721139011378,20.0,155.19,155.15,15.0132]
[1721139011576,21.33836373,155.21,155.15,15.0132]
[1721139011866,1.33836373,155.23,155.15,15.0132]
[1721139012079,7.78046373,155.23,155.16,16.2815]
[1721139012272,6.4421,155.23,155.16,16.2815]
[1721139012452,6.442,155.23,155.18,6.444]
[1721139012650,6.4416,155.25,155.18,16.1096]
[1721139012850,6.4413,155.25,155.18,16.1096]
[1721139013057,1.33836373,155.24,155.2,6.4432]
[1721139013261,6.4412,155.25,155.2,6.4432]
[1721139013595,7.77896373,155.27,155.21,6.4427]
[1721139013873,6.4409,155.26,155.22,16.46876462]
[1721139014872,6.4404,155.27,155.22,22.1939]
[1721139015052,26.4408,155.26,155.22,15.7516]
[1721139015371,20.0,155.26,155.22,15.7516]
[1721139015555,21.33836373,155.29,155.22,22.1937]
[1721139015753,6.4406,155.27,155.22,15.7516]
[1721139015949,20.0,155.26,155.22,15.7516]
[1721139016354,6.4406,155.27,155.23,6.645]
[1721139016559,1.33836373,155.33,155.23,6.645]
[1721139016868,6.4374,155.34,155.27,16.1002]
[1721139017086,6.69916066,155.39,155.34,6.437]
[1721139017376,1.33836373,155.39,155.32,16.0949]
[1721139017573,0.8428563,155.41,155.34,6.0147]
[1721139018073,0.8428563,155.41,155.35,16.262]
[1721139018257,0.8428563,155.41,155.36,7.72325894]
[1721139018460,7.2774563,155.41,155.36,7.72325894]
[1721139018667,0.8428563,155.41,155.36,1.28705894]
[1721139018875,7.2774563,155.41,155.36,1.28705894]
[1721139019064,6.4355,155.39,155.34,6.0147]
[1721139019565,2.18122003,155.41,155.34,6.0147]
[1721139019771,6.435,155.4,155.35,6.4369]
[1721139020083,20.0,155.39,155.34,6.0147]
[1721139020268,2.18122003,155.41,155.34,6.0147]
[1721139020467,6.4358,155.38,155.34,6.0147]
[1721139020773,6.4351,155.4,155.34,22.1077]
[1721139020971,20.0,155.39,155.34,28.5449]
[1721139021158,6.4359,155.38,155.34,6.0147]
[1721139021362,0.8428563,155.41,155.37,6.4362]
[1721139021581,0.8428563,155.41,155.38,6.4357]
[1721139021785,0.8428563,155.41,155.35,31.2675]
[1721139022183,0.8428563,155.41,155.37,16.0899]
[1721139022352,0.8428563,155.41,155.39,6.435]
[1721139022858,0.8428563,155.41,155.38,6.4357]
[1721139023270,0.8428563,155.41,155.39,22.523]
[1721139023660,0.8428563,155.41,155.36,22.528]
[1721139024062,0.8428563,155.41,155.35,15.0058]
[1721139024063,6.4361,155.38,155.35,15.0058]
[1721139024268,6.4366,155.36,155.34,6.0147]
[1721139024460,1.33836373,155.39,155.34,6.0147]
[1721139024667,20.0,155.39,155.34,6.0147]
[1721139024963,0.8428563,155.41,155.35,16.092]
[1721139025156,20.8428563,155.41,155.35,16.092]
[1721139025371,20.8428563,155.41,155.36,6.4365]
[1721139025578,20.8428563,155.41,155.37,6.4362]
[1721139025757,27.2774563,155.41,155.35,16.092]
[1721139026167,27.2774563,155.41,155.35,22.529]
[1721139026371,6.4351,155.4,155.35,16.092]
[1721139026667,0.8428563,155.41,155.36,16.0911]
[1721139026865,0.8428563,155.41,155.4,6.435]
[1721139027113,0.8428563,155.41,155.4,12.8858]
[1721139027402,6.432,155.48,155.42,22.519]
[1721139027579,6.4322,155.47,155.42,22.519]
[1721139027779,6.4317,155.48,155.43,1.28598306]
[1721139028295,6.4317,155.48,155.42,22.519]
[1721139028500,6.4317,155.48,155.43,6.4337]
[1721139028795,6.4317,155.48,155.43,6.4334]
[1721139029098,1.33836373,155.56,155.45,15.0944]
[1721139029305,6.4288,155.55,155.5,6.4655]
[1721139029709,2.18122003,155.57,155.51,0.66085211]
[1721139029990,6.4294,155.54,155.5,6.4655]
[1721139030211,6.4304,155.52,155.5,6.4655]
[1721139030371,6.4296,155.53,155.5,6.4655]
[1721139030699,1.33836373,155.56,155.5,6.4655]
[1721139030994,6.4296,155.53,155.5,6.4655]
[1721139031200,6.4291,155.55,155.5,6.4655]
[1721139031382,1.33836373,155.56,155.5,6.4655]
[1721139031383,6.4283,155.56,155.5,6.4655]
[1721139031704,0.8428563,155.57,155.51,7.71597974]
[1721139031867,0.8428563,155.57,155.52,6.5999]
[1721139032068,0.8428563,155.57,155.5,22.5425]
[1721139032299,0.8428563,155.57,155.5,28.973]
[1721139032470,6.4288,155.55,155.5,6.4655]
[1721139032670,0.8428563,155.57,155.5,6.4655]
[1721139032902,6.4287,155.56,155.5,6.4655]
[1721139033277,7.2707563,155.57,155.5,6.4655]
[1721139033486,7.2708563,155.57,155.5,12.8963]
[1721139033797,0.8428563,155.57,155.51,45.0]
[1721139034003,0.8428563,155.57,155.52,0.17]
[1721139034500,0.8428563,155.57,155.52,16.2448]
[1721139034801,0.8428563,155.57,155.54,6.4291]
[1721139035292,0.8428563,155.57,155.52,16.2448]
[1721139035501,0.8428563,155.57,155.53,6.4294]
[1721139035721,0.8428563,155.57,155.52,16.2448]
[1721139035884,7.2711563,155.57,155.52,0.17]
[1721139036108,6.4288,155.55,155.5,6.4655]
[1721139036576,6.4294,155.54,155.5,6.4655]
[1721139036788,6.4287,155.56,155.5,6.4655]
[1721139036979,7.2711563,155.57,155.5,28.9726]
[1721139037178,0.8428563,155.57,155.52,6.43]
[1721139037386,0.8428563,155.57,155.52,16.0742]
[1721139037595,0.8428563,155.57,155.53,0.34]
[1721139037991,0.8428563,155.57,155.54,22.2653]
[1721139038195,0.8428563,155.57,155.56,6.4283]
[1721139038698,0.8428563,155.57,155.56,6.5983]
[1721139038899,0.8428563,155.57,155.54,31.9084]
[1721139039083,0.8428563,155.57,155.56,6.4283]
[1721139039287,0.8428563,155.57,155.56,51.7683]
[1721139039508,0.8428563,155.57,155.56,59.5750805]
[1721139039676,1.33836373,155.66,155.56,72.5167805]
[1721139039882,15.0166563,155.73,155.57,64.71]
[1721139039883,1.33836373,155.7,155.57,64.71]
[1721139040100,6.4233,155.69,155.62,6.4255]
[1721139040412,6.4233,155.69,155.62,6.4258]
[1721139040413,6.4234,155.69,155.62,6.4258]
[1721139040594,1.33836373,155.7,155.64,6.4249]
[1721139040906,1.33836373,155.7,155.58,32.1363]
[1721139041110,1.33836373,155.7,155.61,6.4259]
[1721139041407,1.33836373,155.7,155.64,6.4249]
[1721139041408,6.4227,155.7,155.64,6.4249]
[1721139041577,1.33836373,155.72,155.63,16.0636]
[1721139041772,2.18122003,155.73,155.66,16.0605]
[1721139041974,6.4226,155.7,155.64,6.1807]
[1721139042202,6.4218,155.72,155.66,6.4242]
[1721139042412,0.8428563,155.73,155.65,45.0]
[1721139042704,0.8428563,155.73,155.65,6.4245]
[1721139042705,6.4223,155.71,155.65,6.4245]
[1721139042885,6.4218,155.72,155.65,45.0]
[1721139043088,0.8428563,155.73,155.65,45.0]
[1721139043293,6.4221,155.72,155.65,45.0]
[1721139043498,6.4227,155.7,155.64,38.3655]
[1721139043806,6.4222,155.71,155.65,51.4246]
[1721139044013,0.8428563,155.73,155.64,38.3655]
[1721139044182,0.8428563,155.73,155.65,45.17]
[1721139044379,6.422,155.72,155.66,6.4241]
[1721139044580,6.4221,155.71,155.65,51.4244]
[1721139044796,0.8428563,155.73,155.66,6.5942]
[1721139045099,6.4217,155.72,155.66,6.5942]
[1721139045310,0.8428563,155.73,155.69,6.4229]
[1721139045687,0.8428563,155.73,155.71,6.4218]
[1721139045889,0.8428563,155.73,155.7,0.59428925]
[1721139045890,0.8428563,155.73,155.7,61.2258]
[1721139046082,0.8428563,155.73,155.71,0.34]
[1721139046285,0.8428563,155.73,155.72,6.4217]
[1721139046484,0.8428563,155.73,155.72,6.7617]
[1721139046689,0.8428563,155.73,155.72,57.9943]
[1721139046899,0.04047736,155.77,155.72,57.9943]
[1721139046900,0.04047736,155.77,155.74,16.0516]
[1721139047114,0.04047736,155.77,155.76,6.4201]
[1721139047322,0.04047736,155.77,155.76,51.7601]
[1721139047994,0.8428563,155.88,155.79,16.0466]
[1721139048318,7.2580563,155.88,155.8,45.34]
[1721139048487,0.8428563,155.88,155.81,16.0445]
[1721139049003,0.8428563,155.88,155.81,22.4623]
[1721139049193,0.8428563,155.88,155.82,0.17]
[1721139049392,0.8428563,155.88,155.82,6.5876]
[1721139049605,1.33836373,155.87,155.81,6.0226]
[1721139050122,6.4188,155.8,155.77,6.0226]
[1721139050293,10.0,155.86,155.73,15.3906]
[1721139050501,6.4197,155.77,155.73,6.0226]
[1721139050731,16.0457,155.81,155.73,6.0226]
[1721139051013,1.33836373,155.8,155.69,6.1732]
[1721139051215,6.4201,155.76,155.69,6.1732]
[1721139051520,1.33836373,155.79,155.69,6.1732]
[1721139051697,6.4189,155.79,155.73,6.421]
[1721139051906,1.33836373,155.81,155.76,6.4201]
[1721139051907,20.0,155.78,155.76,6.4201]
[1721139052098,20.0,155.82,155.77,6.4194]
[1721139052293,26.4177,155.82,155.78,1.28352177]
[1721139052490,20.0,155.82,155.78,1.28352177]
[1721139052711,26.4176,155.82,155.78,1.28352177]
[1721139052916,1.33836373,155.81,155.73,6.421]
[1721139053102,6.4188,155.8,155.74,51.7609]
[1721139053288,17.38196373,155.83,155.72,16.054]
[1721139053609,6.4199,155.77,155.73,0.8876319]
[1721139053816,1.33836373,155.81,155.74,0.89056769]
[1721139054003,6.4194,155.78,155.74,0.89056769]
[1721139054191,6.4197,155.77,155.74,0.89056769]
[1721139054386,1.33836373,155.81,155.74,0.89056769]
[1721139054631,62.38416373,155.81,155.71,32.54298091]
[1721139054797,62.38416373,155.81,155.69,6.1732]
[1721139054798,20.0,155.8,155.72,38.54951035]
[1721139055119,6.4196,155.78,155.72,38.54951035]
[1721139055313,7.75806373,155.77,155.71,38.96508091]
[1721139055490,26.4201,155.76,155.71,32.54298091]
[1721139055691,20.0,155.76,155.71,38.96508091]
[1721139055903,20.0,155.76,155.71,32.54298091]
[1721139056104,6.4204,155.76,155.71,32.54298091]
[1721139056717,6.4197,155.78,155.73,32.23370151]
[1721139056920,20.0,155.77,155.71,32.54298091]
[1721139057123,1.33836373,155.79,155.73,32.23370151]
[1721139057429,6.4206,155.75,155.71,32.54298091]
[1721139057634,1.33836373,155.79,155.7,32.57327115]
[1721139057934,6.421,155.74,155.7,32.57327115]
[1721139058146,1.33836373,155.79,155.7,32.57327115]
[1721139058439,6.4198,155.77,155.72,32.12791035]
[1721139058625,6.4206,155.75,155.7,32.57327115]
[1721139058818,1.33836373,155.75,155.7,32.57327115]
[1721139059020,1.33836373,155.75,155.64,32.1249]
[1721139059021,6.4222,155.71,155.67,32.45731324]
[1721139059231,1.33836373,155.75,155.66,32.63652141]
[1721139059536,6.4205,155.75,155.7,32.57327115]
[1721139059739,20.0,155.74,155.7,32.57327115]
[1721139059916,20.0,155.74,155.7,38.99557115]
[1721139060246,20.0,155.74,155.72,32.12791035]
[1721139060547,1.33836373,155.76,155.67,32.45731324]
[1721139060743,1.33836373,155.76,155.69,32.01652786]
[1721139061039,1.33836373,155.76,155.72,32.12791035]
[1721139061040,6.4217,155.73,155.72,32.12791035]
[1721139061226,17.38936373,155.76,155.72,32.12791035]
[1721139061227,26.4201,155.77,155.72,32.12791035]
[1721139061736,6.4192,155.79,155.73,38.65460151]
[1721139061939,1.33836373,155.79,155.73,32.23370151]